[Event "Titled Tuesday Blitz November 08 Early 2022"]
[White "Zia, Tahsin Tajwar"]
[Black "Janaszak, Dawid"]
[WhiteFideId "10211888"]
[BlackFideId "1119206"]
[WhiteElo "2061"]
[BlackElo "2226"]
[Result "0-1"]
[Round "05"]
[TimeControl "180+1"]
[Date "2022.11.09"]
[WhiteClock "0:00:16"]
[BlackClock "0:00:19"]

1. d4 {[%clk 0:03:00]}  Nf6 {[%clk 0:02:54]} 2. c4 {[%clk 0:03:00]}  g6 {[%clk 0:02:50]} 3. Nc3 {[%clk 0:03:00]}  Bg7 {[%clk 0:02:49]} 4. e4 {[%clk 0:03:00]}  d6 {[%clk 0:02:50]} 5. Be2 {[%clk 0:03:01]}  O-O {[%clk 0:02:49]} 6. Be3 {[%clk 0:03:01]}  Nbd7 {[%clk 0:02:48]} 7. h4 {[%clk 0:03:00]}  h5 {[%clk 0:02:45]} 8. f3 {[%clk 0:02:58]}  c5 {[%clk 0:02:43]} 9. d5 {[%clk 0:02:55]}  b5 {[%clk 0:02:43]} 10. Nxb5 {[%clk 0:02:53]}  Rb8 {[%clk 0:02:43]} 11. Rb1 {[%clk 0:02:52]}  Ne5 {[%clk 0:02:37]} 12. Qd2 {[%clk 0:02:44]}  a6 {[%clk 0:02:31]} 13. Nc3 {[%clk 0:02:44]}  Rb4 {[%clk 0:02:32]} 14. b3 {[%clk 0:02:43]}  e6 {[%clk 0:02:30]} 15. Nh3 {[%clk 0:02:40]}  exd5 {[%clk 0:02:31]} 16. cxd5 {[%clk 0:02:35]}  Nh7 {[%clk 0:02:18]} 17. Ng5 {[%clk 0:02:25]}  Nxg5 {[%clk 0:02:16]} 18. hxg5 {[%clk 0:02:17]}  Qa5 {[%clk 0:02:04]} 19. O-O {[%clk 0:01:57]}  f5 {[%clk 0:01:59]} 20. gxf6 {[%clk 0:01:37]}  Bxf6 {[%clk 0:01:59]} 21. Bg5 {[%clk 0:01:34]}  Rd4 {[%clk 0:01:54]} 22. Qe3 {[%clk 0:01:16]}  Bxg5 {[%clk 0:01:52]} 23. Qxg5 {[%clk 0:01:17]}  Qxc3 {[%clk 0:01:52]} 24. f4 {[%clk 0:01:17]}  Qe3+ {[%clk 0:01:48]} 25. Rf2 {[%clk 0:01:16]}  Rxe4 {[%clk 0:01:38]} 26. Rf1 {[%clk 0:01:15]}  Bf5 {[%clk 0:01:15]} 27. Bxh5 {[%clk 0:01:12]}  Nf7 {[%clk 0:01:02]} 28. Qf6 {[%clk 0:01:12]}  Nh8 {[%clk 0:00:54]} 29. Qg5 {[%clk 0:01:10]}  Nf7 {[%clk 0:00:48]} 30. Qf6 {[%clk 0:01:10]}  gxh5 {[%clk 0:00:46]} 31. Qxf5 {[%clk 0:01:09]}  Kg7 {[%clk 0:00:35]} 32. Kh1 {[%clk 0:00:54]}  Nh8 {[%clk 0:00:35]} 33. Qg5+ {[%clk 0:00:52]}  Ng6 {[%clk 0:00:36]} 34. Rf3 {[%clk 0:00:51]}  Qd2 {[%clk 0:00:36]} 35. Rg3 {[%clk 0:00:48]}  Rf6 {[%clk 0:00:29]} 36. Qxh5 {[%clk 0:00:28]}  Rexf4 {[%clk 0:00:24]} 37. Rxf4 {[%clk 0:00:24]}  Qxf4 {[%clk 0:00:25]} 38. Rh3 {[%clk 0:00:21]}  Qf1+ {[%clk 0:00:23]} 39. Kh2 {[%clk 0:00:21]}  Qf4+ {[%clk 0:00:22]} 40. Kh1 {[%clk 0:00:21]}  Kf8 {[%clk 0:00:20]} 41. Rf3 {[%clk 0:00:12]}  Qc1+ {[%clk 0:00:20]} 42. Kh2 {[%clk 0:00:12]}  Rxf3 {[%clk 0:00:20]} 43. Qxf3+ {[%clk 0:00:12]}  Qf4+ {[%clk 0:00:21]} 44. Qxf4+ {[%clk 0:00:05]}  Nxf4 {[%clk 0:00:22]} 45. Kg3 {[%clk 0:00:06]}  Nxd5 {[%clk 0:00:22]} 46. Kf3 {[%clk 0:00:07]}  Nb4 {[%clk 0:00:23]} 47. a3 {[%clk 0:00:07]}  Nc2 {[%clk 0:00:23]} 48. Ke4 {[%clk 0:00:06]}  Nxa3 {[%clk 0:00:20]} 49. Kd5 {[%clk 0:00:07]}  Ke7 {[%clk 0:00:21]} 50. g4 {[%clk 0:00:08]}  Nb5 {[%clk 0:00:20]} 51. g5 {[%clk 0:00:09]}  Nc7+ {[%clk 0:00:14]} 52. Kc6 {[%clk 0:00:09]}  Ne6 {[%clk 0:00:13]} 53. g6 {[%clk 0:00:08]}  Nd4+ {[%clk 0:00:13]} 54. Kd5 {[%clk 0:00:07]}  Nb5 {[%clk 0:00:14]} 55. g7 {[%clk 0:00:08]}  Kf7 {[%clk 0:00:14]} 56. Kc6 {[%clk 0:00:09]}  Kxg7 {[%clk 0:00:14]} 57. Kb6 {[%clk 0:00:09]}  Nd4 {[%clk 0:00:13]} 58. Kc7 {[%clk 0:00:07]}  Nxb3 {[%clk 0:00:13]} 59. Kxd6 {[%clk 0:00:08]}  c4 {[%clk 0:00:14]} 60. Kd5 {[%clk 0:00:08]}  c3 {[%clk 0:00:15]} 61. Kc4 {[%clk 0:00:09]}  c2 {[%clk 0:00:16]} 62. Kb4 {[%clk 0:00:10]}  c1=Q {[%clk 0:00:16]} 63. Ka4 {[%clk 0:00:11]}  Qa1+ {[%clk 0:00:15]} 64. Kb4 {[%clk 0:00:11]}  a5+ {[%clk 0:00:15]} 65. Kb5 {[%clk 0:00:11]}  a4 {[%clk 0:00:16]} 66. Kb4 {[%clk 0:00:12]}  a3 {[%clk 0:00:16]} 67. Ka4 {[%clk 0:00:13]}  Nc1 {[%clk 0:00:17]} 68. Kb4 {[%clk 0:00:13]}  Qb2+ {[%clk 0:00:17]} 69. Kc4 {[%clk 0:00:13]}  a2 {[%clk 0:00:18]} 70. Kd5 {[%clk 0:00:14]}  a1=Q {[%clk 0:00:18]} 71. Ke4 {[%clk 0:00:15]}  Qe5+ {[%clk 0:00:18]} 72. Kf3 {[%clk 0:00:15]}  Qac3+ {[%clk 0:00:18]} 73. Kf2 {[%clk 0:00:16]}  Qd2+ {[%clk 0:00:19]} 74. Kf3 {[%clk 0:00:16]}  Qef4# {[%clk 0:00:19]} 0-1


[Site "https://www.chess.com"]

[Event "Titled Tuesday Blitz November 08 Early 2022"]
[White "Akylbekov, Nasyr"]
[Black "Johnson, Ben"]
[WhiteFideId "13800353"]
[BlackFideId "2010917"]
[WhiteElo "2310"]
[BlackElo "2137"]
[Result "1-0"]
[Round "06"]
[TimeControl "180+1"]
[Date "2022.11.09"]
[WhiteClock "0:01:47"]
[BlackClock "0:00:51"]

1. e4 {[%clk 0:02:56]}  c5 {[%clk 0:02:59]} 2. Nf3 {[%clk 0:02:50]}  Nc6 {[%clk 0:02:59]} 3. Nc3 {[%clk 0:02:51]}  e5 {[%clk 0:02:59]} 4. Bc4 {[%clk 0:02:51]}  Be7 {[%clk 0:02:58]} 5. d3 {[%clk 0:02:49]}  d6 {[%clk 0:02:56]} 6. Be3 {[%clk 0:02:48]}  Nf6 {[%clk 0:02:56]} 7. O-O {[%clk 0:02:46]}  O-O {[%clk 0:02:56]} 8. h3 {[%clk 0:02:43]}  Nd4 {[%clk 0:02:55]} 9. Nh2 {[%clk 0:02:43]}  Rb8 {[%clk 0:02:53]} 10. Ne2 {[%clk 0:02:43]}  b5 {[%clk 0:02:50]} 11. Bb3 {[%clk 0:02:44]}  a5 {[%clk 0:02:08]} 12. c3 {[%clk 0:02:37]}  Nxb3 {[%clk 0:02:04]} 13. axb3 {[%clk 0:02:34]}  Be6 {[%clk 0:02:03]} 14. Ng3 {[%clk 0:02:33]}  d5 {[%clk 0:02:02]} 15. f4 {[%clk 0:02:27]}  exf4 {[%clk 0:01:34]} 16. Bxf4 {[%clk 0:02:16]}  Ra8 {[%clk 0:01:34]} 17. e5 {[%clk 0:02:09]}  Nd7 {[%clk 0:01:34]} 18. d4 {[%clk 0:02:08]}  c4 {[%clk 0:01:31]} 19. Nf3 {[%clk 0:02:01]}  cxb3 {[%clk 0:01:20]} 20. Qxb3 {[%clk 0:02:01]}  Qb6 {[%clk 0:01:08]} 21. Ng5 {[%clk 0:01:52]}  a4 {[%clk 0:01:05]} 22. Qc2 {[%clk 0:01:49]}  Rfc8 {[%clk 0:01:00]} 23. Qxh7+ {[%clk 0:01:46]}  Kf8 {[%clk 0:00:51]} 24. Qh8# {[%clk 0:01:47]} 1-0


[Site "https://www.chess.com"]

[Event "Titled Tuesday Blitz November 08 Early 2022"]
[White "Aradhya, Garg"]
[Black "Turzo, Attila"]
[WhiteFideId "25006746"]
[BlackFideId "704954"]
[WhiteElo "2223"]
[BlackElo "2523"]
[Result "1-0"]
[Round "06"]
[TimeControl "180+1"]
[Date "2022.11.09"]
[WhiteClock "0:01:05"]
[BlackClock "0:00:02"]

1. d4 {[%clk 0:03:00]}  Nf6 {[%clk 0:02:59]} 2. Nf3 {[%clk 0:02:59]}  g6 {[%clk 0:02:59]} 3. Bg5 {[%clk 0:02:58]}  Bg7 {[%clk 0:02:55]} 4. Nbd2 {[%clk 0:02:58]}  d5 {[%clk 0:02:55]} 5. e3 {[%clk 0:02:58]}  O-O {[%clk 0:02:54]} 6. Bd3 {[%clk 0:02:58]}  c5 {[%clk 0:02:54]} 7. c3 {[%clk 0:02:57]}  Nc6 {[%clk 0:02:53]} 8. dxc5 {[%clk 0:02:57]}  Nd7 {[%clk 0:02:49]} 9. Nb3 {[%clk 0:02:55]}  f6 {[%clk 0:02:41]} 10. Bh4 {[%clk 0:02:54]}  e5 {[%clk 0:02:41]} 11. e4 {[%clk 0:02:53]}  dxe4 {[%clk 0:01:58]} 12. Bxe4 {[%clk 0:02:54]}  Qe7 {[%clk 0:01:57]} 13. O-O {[%clk 0:02:39]}  Nxc5 {[%clk 0:01:47]} 14. Qd5+ {[%clk 0:02:39]}  Ne6 {[%clk 0:01:47]} 15. Nxe5 {[%clk 0:02:39]}  Nxe5 {[%clk 0:01:41]} 16. Qxe5 {[%clk 0:02:39]}  Kh8 {[%clk 0:01:11]} 17. Qb5 {[%clk 0:02:02]}  Qf7 {[%clk 0:01:06]} 18. Bg3 {[%clk 0:02:00]}  f5 {[%clk 0:01:03]} 19. Bd5 {[%clk 0:01:58]}  Qf6 {[%clk 0:00:55]} 20. Rae1 {[%clk 0:01:47]}  f4 {[%clk 0:00:49]} 21. Bxe6 {[%clk 0:01:47]}  Bxe6 {[%clk 0:00:35]} 22. Bxf4 {[%clk 0:01:47]}  Bxb3 {[%clk 0:00:10]} 23. Be5 {[%clk 0:01:46]}  Qf7 {[%clk 0:00:06]} 24. axb3 {[%clk 0:01:45]}  Bxe5 {[%clk 0:00:06]} 25. Qxe5+ {[%clk 0:01:42]}  Kg8 {[%clk 0:00:05]} 26. h4 {[%clk 0:01:42]}  Rae8 {[%clk 0:00:05]} 27. Qd4 {[%clk 0:01:40]}  a6 {[%clk 0:00:05]} 28. b4 {[%clk 0:01:36]}  Rd8 {[%clk 0:00:05]} 29. Qe3 {[%clk 0:01:34]}  Rfe8 {[%clk 0:00:05]} 30. Qg3 {[%clk 0:01:33]}  Rxe1 {[%clk 0:00:03]} 31. Rxe1 {[%clk 0:01:34]}  Rd2 {[%clk 0:00:03]} 32. Qb8+ {[%clk 0:01:23]}  Kg7 {[%clk 0:00:03]} 33. Qe5+ {[%clk 0:01:24]}  Kg8 {[%clk 0:00:03]} 34. Qe8+ {[%clk 0:01:20]}  Qxe8 {[%clk 0:00:03]} 35. Rxe8+ {[%clk 0:01:18]}  Kf7 {[%clk 0:00:03]} 36. Rb8 {[%clk 0:01:19]}  Rxb2 {[%clk 0:00:04]} 37. Rxb7+ {[%clk 0:01:19]}  Kf6 {[%clk 0:00:05]} 38. Rxh7 {[%clk 0:01:17]}  Rc2 {[%clk 0:00:04]} 39. Ra7 {[%clk 0:01:17]}  Ke5 {[%clk 0:00:04]} 40. Rxa6 {[%clk 0:01:16]}  Rxc3 {[%clk 0:00:04]} 41. Rxg6 {[%clk 0:01:16]}  Rc4 {[%clk 0:00:05]} 42. Rg5+ {[%clk 0:01:16]}  Kf6 {[%clk 0:00:05]} 43. g3 {[%clk 0:01:15]}  Rxb4 {[%clk 0:00:05]} 44. Kg2 {[%clk 0:01:16]}  Rc4 {[%clk 0:00:05]} 45. Ra5 {[%clk 0:01:16]}  Rd4 {[%clk 0:00:05]} 46. h5 {[%clk 0:01:16]}  Rc4 {[%clk 0:00:06]} 47. Kh3 {[%clk 0:01:15]}  Rb4 {[%clk 0:00:06]} 48. f4 {[%clk 0:01:14]}  Rc4 {[%clk 0:00:06]} 49. Kg4 {[%clk 0:01:15]}  Rb4 {[%clk 0:00:06]} 50. Ra6+ {[%clk 0:01:15]}  Kg7 {[%clk 0:00:06]} 51. Kg5 {[%clk 0:01:15]}  Rb1 {[%clk 0:00:05]} 52. f5 {[%clk 0:01:16]}  Rg1 {[%clk 0:00:06]} 53. h6+ {[%clk 0:01:16]}  Kh7 {[%clk 0:00:07]} 54. Ra7+ {[%clk 0:01:15]}  Kh8 {[%clk 0:00:07]} 55. g4 {[%clk 0:01:15]}  Kg8 {[%clk 0:00:07]} 56. f6 {[%clk 0:01:12]}  Kh8 {[%clk 0:00:06]} 57. f7 {[%clk 0:01:08]}  Rf1 {[%clk 0:00:06]} 58. Kg6 {[%clk 0:01:07]}  Rf2 {[%clk 0:00:02]} 59. Ra8# {[%clk 0:01:05]} 1-0


[Site "https://www.chess.com"]

[Event "Titled Tuesday Blitz November 08 Early 2022"]
[White "Artemenko, Oleg"]
[Black "Sarana, Alexey"]
[WhiteFideId "14201798"]
[BlackFideId "24133795"]
[WhiteElo "2287"]
[BlackElo "2708"]
[Result "0-1"]
[Round "06"]
[TimeControl "180+1"]
[Date "2022.11.08"]
[WhiteClock "0:00:10"]
[BlackClock "0:00:14"]

1. d4 {[%clk 0:03:00]}  Nf6 {[%clk 0:02:55]} 2. Nc3 {[%clk 0:03:01]}  d5 {[%clk 0:02:54]} 3. Bf4 {[%clk 0:03:01]}  a6 {[%clk 0:02:52]} 4. e3 {[%clk 0:03:01]}  c5 {[%clk 0:02:52]} 5. dxc5 {[%clk 0:03:02]}  e6 {[%clk 0:02:50]} 6. Na4 {[%clk 0:03:02]}  Nc6 {[%clk 0:02:26]} 7. c3 {[%clk 0:03:02]}  h6 {[%clk 0:02:20]} 8. Nf3 {[%clk 0:03:01]}  Nh5 {[%clk 0:02:08]} 9. Bd3 {[%clk 0:02:48]}  Nxf4 {[%clk 0:02:05]} 10. exf4 {[%clk 0:02:49]}  Be7 {[%clk 0:02:03]} 11. Qc2 {[%clk 0:02:40]}  O-O {[%clk 0:02:03]} 12. O-O-O {[%clk 0:02:39]}  Bd7 {[%clk 0:02:00]} 13. g4 {[%clk 0:02:36]}  Qc7 {[%clk 0:01:59]} 14. Qd2 {[%clk 0:02:25]}  Nb4 {[%clk 0:01:38]} 15. Nb6 {[%clk 0:02:24]}  Nxd3+ {[%clk 0:01:34]} 16. Qxd3 {[%clk 0:02:25]}  Qxf4+ {[%clk 0:01:31]} 17. Qe3 {[%clk 0:02:06]}  Qxe3+ {[%clk 0:01:30]} 18. fxe3 {[%clk 0:02:07]}  Rad8 {[%clk 0:01:31]} 19. Nxd7 {[%clk 0:02:06]}  Rxd7 {[%clk 0:01:31]} 20. b4 {[%clk 0:02:04]}  b6 {[%clk 0:01:26]} 21. cxb6 {[%clk 0:02:03]}  Rb7 {[%clk 0:01:18]} 22. Rhe1 {[%clk 0:01:44]}  Rc8 {[%clk 0:01:17]} 23. Kd2 {[%clk 0:01:38]}  Rxb6 {[%clk 0:01:15]} 24. e4 {[%clk 0:01:37]}  dxe4 {[%clk 0:00:57]} 25. Rxe4 {[%clk 0:01:38]}  Bf6 {[%clk 0:00:55]} 26. Rc1 {[%clk 0:01:32]}  Rd6+ {[%clk 0:00:54]} 27. Ke2 {[%clk 0:01:28]}  Rxc3 {[%clk 0:00:46]} 28. Rxc3 {[%clk 0:01:28]}  Bxc3 {[%clk 0:00:47]} 29. Rc4 {[%clk 0:01:28]}  Bf6 {[%clk 0:00:47]} 30. Rc8+ {[%clk 0:01:22]}  Kh7 {[%clk 0:00:47]} 31. h4 {[%clk 0:01:22]}  g5 {[%clk 0:00:46]} 32. hxg5 {[%clk 0:01:22]}  hxg5 {[%clk 0:00:47]} 33. a4 {[%clk 0:01:21]}  Rb6 {[%clk 0:00:42]} 34. Rc4 {[%clk 0:01:18]}  Kg6 {[%clk 0:00:35]} 35. Kd3 {[%clk 0:01:18]}  Bg7 {[%clk 0:00:35]} 36. Rc5 {[%clk 0:01:05]}  f5 {[%clk 0:00:30]} 37. gxf5+ {[%clk 0:01:05]}  exf5 {[%clk 0:00:31]} 38. b5 {[%clk 0:01:04]}  axb5 {[%clk 0:00:30]} 39. axb5 {[%clk 0:01:05]}  Rb8 {[%clk 0:00:20]} 40. Ke3 {[%clk 0:01:01]}  Bf6 {[%clk 0:00:19]} 41. Nd2 {[%clk 0:00:49]}  Re8+ {[%clk 0:00:16]} 42. Kf3 {[%clk 0:00:48]}  g4+ {[%clk 0:00:16]} 43. Kg3 {[%clk 0:00:47]}  Re3+ {[%clk 0:00:16]} 44. Kf2 {[%clk 0:00:40]}  Bd4 {[%clk 0:00:16]} 45. Rd5 {[%clk 0:00:15]}  Ba7 {[%clk 0:00:12]} 46. Kf1 {[%clk 0:00:12]}  Kg5 {[%clk 0:00:11]} 47. Nc4 {[%clk 0:00:10]}  Rf3+ {[%clk 0:00:08]} 48. Ke1 {[%clk 0:00:11]}  g3 {[%clk 0:00:08]} 49. Rd8 {[%clk 0:00:10]}  Kf4 {[%clk 0:00:07]} 50. Rg8 {[%clk 0:00:09]}  Rb3 {[%clk 0:00:06]} 51. Nd6 {[%clk 0:00:07]}  Bc5 {[%clk 0:00:06]} 52. Nc4 {[%clk 0:00:04]}  Rxb5 {[%clk 0:00:06]} 53. Ke2 {[%clk 0:00:04]}  Rb3 {[%clk 0:00:06]} 54. Nd2 {[%clk 0:00:04]}  Re3+ {[%clk 0:00:06]} 55. Kf1 {[%clk 0:00:04]}  Rd3 {[%clk 0:00:07]} 56. Ke2 {[%clk 0:00:05]}  Ra3 {[%clk 0:00:06]} 57. Nc4 {[%clk 0:00:02]}  Ra2+ {[%clk 0:00:07]} 58. Kf1 {[%clk 0:00:02]}  Rf2+ {[%clk 0:00:07]} 59. Ke1 {[%clk 0:00:02]}  g2 {[%clk 0:00:07]} 60. Nd2 {[%clk 0:00:02]}  Rxd2 {[%clk 0:00:07]} 61. Kxd2 {[%clk 0:00:02]}  g1=Q {[%clk 0:00:07]} 62. Rxg1 {[%clk 0:00:03]}  Bxg1 {[%clk 0:00:07]} 63. Ke2 {[%clk 0:00:04]}  Ba7 {[%clk 0:00:08]} 64. Kf1 {[%clk 0:00:05]}  Kg3 {[%clk 0:00:08]} 65. Ke2 {[%clk 0:00:05]}  f4 {[%clk 0:00:09]} 66. Kf1 {[%clk 0:00:06]}  f3 {[%clk 0:00:10]} 67. Ke1 {[%clk 0:00:06]}  Kg2 {[%clk 0:00:11]} 68. Kd2 {[%clk 0:00:06]}  f2 {[%clk 0:00:12]} 69. Kd3 {[%clk 0:00:07]}  f1=Q+ {[%clk 0:00:13]} 70. Ke4 {[%clk 0:00:08]}  Qc4+ {[%clk 0:00:12]} 71. Ke5 {[%clk 0:00:09]}  Bd4+ {[%clk 0:00:13]} 72. Kf5 {[%clk 0:00:09]}  Qd5+ {[%clk 0:00:13]} 73. Kg6 {[%clk 0:00:09]}  Qe6+ {[%clk 0:00:13]} 74. Kh7 {[%clk 0:00:10]}  Qf7+ {[%clk 0:00:13]} 75. Kh6 {[%clk 0:00:10]}  Be3# {[%clk 0:00:14]} 0-1


[Site "https://www.chess.com"]

[Event "Titled Tuesday Blitz November 08 Early 2022"]
[White "Baches Garcia, Guillermo"]
[Black "Kozak, Antoni"]
[WhiteFideId "2209764"]
[BlackFideId "21832030"]
[WhiteElo "2467"]
[BlackElo "2447"]
[Result "0-1"]
[Round "06"]
[TimeControl "180+1"]
[Date "2022.11.09"]
[WhiteClock "0:00:11"]
[BlackClock "0:01:10"]

1. e4 {[%clk 0:03:00]}  c6 {[%clk 0:02:55]} 2. c4 {[%clk 0:02:59]}  d5 {[%clk 0:02:54]} 3. exd5 {[%clk 0:03:00]}  cxd5 {[%clk 0:02:54]} 4. cxd5 {[%clk 0:03:01]}  Nf6 {[%clk 0:02:55]} 5. Nc3 {[%clk 0:03:01]}  Nxd5 {[%clk 0:02:54]} 6. Nf3 {[%clk 0:03:02]}  Nc6 {[%clk 0:02:50]} 7. Bb5 {[%clk 0:03:01]}  g6 {[%clk 0:02:31]} 8. Qa4 {[%clk 0:02:45]}  Nb6 {[%clk 0:02:27]} 9. Qh4 {[%clk 0:02:26]}  Bg7 {[%clk 0:02:24]} 10. Bxc6+ {[%clk 0:02:19]}  bxc6 {[%clk 0:02:24]} 11. d4 {[%clk 0:02:19]}  Ba6 {[%clk 0:02:17]} 12. Bh6 {[%clk 0:02:11]}  Bf6 {[%clk 0:02:16]} 13. Bg5 {[%clk 0:01:52]}  O-O {[%clk 0:02:14]} 14. Ne4 {[%clk 0:01:41]}  Nd7 {[%clk 0:01:49]} 15. O-O-O {[%clk 0:01:21]}  Rb8 {[%clk 0:01:47]} 16. Rhe1 {[%clk 0:01:07]}  Qa5 {[%clk 0:01:44]} 17. Nc3 {[%clk 0:00:28]}  Bc4 {[%clk 0:01:22]} 18. Bxf6 {[%clk 0:00:24]}  exf6 {[%clk 0:01:20]} 19. Re7 {[%clk 0:00:18]}  Be6 {[%clk 0:01:10]} 20. Qe4 {[%clk 0:00:11]}  Qb4 {[%clk 0:01:10]} 0-1


[Site "https://www.chess.com"]

[Event "Titled Tuesday Blitz November 08 Early 2022"]
[White "Bacrot, Etienne"]
[Black "Andreikin, Dmitry"]
[WhiteFideId "605506"]
[BlackFideId "4158814"]
[WhiteElo "2666"]
[BlackElo "2736"]
[Result "0-1"]
[Round "06"]
[TimeControl "180+1"]
[Date "2022.11.08"]
[WhiteClock "0:01:31"]
[BlackClock "0:01:58"]

1. d4 {[%clk 0:03:00]}  Nf6 {[%clk 0:02:56]} 2. Nf3 {[%clk 0:03:00]}  e6 {[%clk 0:02:55]} 3. g3 {[%clk 0:03:00]}  b5 {[%clk 0:02:54]} 4. Bg2 {[%clk 0:03:00]}  Bb7 {[%clk 0:02:54]} 5. O-O {[%clk 0:03:00]}  a5 {[%clk 0:02:54]} 6. a4 {[%clk 0:03:00]}  b4 {[%clk 0:02:54]} 7. c4 {[%clk 0:03:00]}  bxc3 {[%clk 0:02:52]} 8. bxc3 {[%clk 0:02:59]}  Be7 {[%clk 0:02:50]} 9. Nbd2 {[%clk 0:02:57]}  O-O {[%clk 0:02:49]} 10. Rb1 {[%clk 0:02:46]}  Bc6 {[%clk 0:02:49]} 11. Qc2 {[%clk 0:02:46]}  d6 {[%clk 0:02:43]} 12. e4 {[%clk 0:02:41]}  Qe8 {[%clk 0:02:37]} 13. Ra1 {[%clk 0:02:26]}  Nbd7 {[%clk 0:02:34]} 14. Re1 {[%clk 0:02:24]}  Nb6 {[%clk 0:02:33]} 15. e5 {[%clk 0:02:19]}  Nfd5 {[%clk 0:02:32]} 16. Ne4 {[%clk 0:02:08]}  Bxa4 {[%clk 0:02:31]} 17. Qb1 {[%clk 0:02:09]}  Qb5 {[%clk 0:02:04]} 18. Bb2 {[%clk 0:02:00]}  Nc4 {[%clk 0:01:58]} 19. Neg5 {[%clk 0:01:31]}  g6 {[%clk 0:01:58]} 0-1


[Site "https://www.chess.com"]

[Event "Titled Tuesday Blitz November 08 Early 2022"]
[White "Beerdsen, Thomas"]
[Black "Gholami Orimi, Mahdi"]
[WhiteFideId "1030108"]
[BlackFideId "12558486"]
[WhiteElo "2567"]
[BlackElo "2330"]
[Result "1/2-1/2"]
[Round "06"]
[TimeControl "180+1"]
[Date "2022.11.08"]
[WhiteClock "0:00:16"]
[BlackClock "0:00:54"]

1. g4 {[%clk 0:02:37]}  d5 {[%clk 0:02:59]} 2. Bg2 {[%clk 0:02:37]}  c6 {[%clk 0:02:59]} 3. c4 {[%clk 0:02:37]}  dxc4 {[%clk 0:03:00]} 4. Na3 {[%clk 0:02:38]}  Bxg4 {[%clk 0:02:57]} 5. Nxc4 {[%clk 0:02:38]}  Nf6 {[%clk 0:02:57]} 6. Nf3 {[%clk 0:02:37]}  Nbd7 {[%clk 0:02:56]} 7. d3 {[%clk 0:02:38]}  Qc7 {[%clk 0:02:56]} 8. Bg5 {[%clk 0:02:35]}  e5 {[%clk 0:02:52]} 9. a3 {[%clk 0:02:28]}  Be7 {[%clk 0:02:49]} 10. Rc1 {[%clk 0:02:28]}  O-O {[%clk 0:02:44]} 11. Ne3 {[%clk 0:02:24]}  Be6 {[%clk 0:02:44]} 12. Bh4 {[%clk 0:02:17]}  Rae8 {[%clk 0:02:43]} 13. Kf1 {[%clk 0:02:16]}  Nd5 {[%clk 0:02:42]} 14. Nxd5 {[%clk 0:02:10]}  Bxd5 {[%clk 0:02:41]} 15. Bg3 {[%clk 0:02:10]}  f5 {[%clk 0:02:40]} 16. e4 {[%clk 0:02:01]}  fxe4 {[%clk 0:02:29]} 17. dxe4 {[%clk 0:02:02]}  Bxe4 {[%clk 0:02:29]} 18. Qe2 {[%clk 0:01:56]}  Bd5 {[%clk 0:02:26]} 19. Rg1 {[%clk 0:01:47]}  Bd6 {[%clk 0:02:16]} 20. Ng5 {[%clk 0:01:40]}  e4 {[%clk 0:02:10]} 21. Bxe4 {[%clk 0:01:12]}  Bxe4 {[%clk 0:02:00]} 22. Nxe4 {[%clk 0:01:10]}  Bxg3 {[%clk 0:01:58]} 23. Rxg3 {[%clk 0:01:11]}  Qf4 {[%clk 0:01:58]} 24. Re1 {[%clk 0:01:05]}  Kh8 {[%clk 0:01:33]} 25. Qg4 {[%clk 0:00:37]}  Qxg4 {[%clk 0:01:32]} 26. Rxg4 {[%clk 0:00:38]}  Ne5 {[%clk 0:01:33]} 27. Rg3 {[%clk 0:00:36]}  Nf3 {[%clk 0:01:33]} 28. Re3 {[%clk 0:00:36]}  Nd4 {[%clk 0:01:19]} 29. Nd6 {[%clk 0:00:28]}  Rd8 {[%clk 0:01:16]} 30. Nxb7 {[%clk 0:00:21]}  Rb8 {[%clk 0:01:16]} 31. Nd6 {[%clk 0:00:13]}  Rxb2 {[%clk 0:01:14]} 32. Nf7+ {[%clk 0:00:14]}  Kg8 {[%clk 0:01:09]} 33. Nh6+ {[%clk 0:00:15]}  Kh8 {[%clk 0:01:10]} 34. Nf7+ {[%clk 0:00:15]}  Kg8 {[%clk 0:00:57]} 35. Nh6+ {[%clk 0:00:16]}  Kh8 {[%clk 0:00:54]} 36. Nf7+ {[%clk 0:00:16]} 1/2-1/2


[Site "https://www.chess.com"]

[Event "Titled Tuesday Blitz November 08 Early 2022"]
[White "Begunov, Konstantin"]
[Black "Kodinets, Konstantin L."]
[WhiteFideId "4118510"]
[BlackFideId "4122011"]
[WhiteElo "2140"]
[BlackElo "2447"]
[Result "1-0"]
[Round "06"]
[TimeControl "180+1"]
[Date "2022.11.09"]
[WhiteClock "0:00:19"]
[BlackClock "0:00:01"]

1. d4 {[%clk 0:03:00]}  d6 {[%clk 0:02:56]} 2. e4 {[%clk 0:03:00]}  Nf6 {[%clk 0:02:56]} 3. f3 {[%clk 0:03:00]}  Nbd7 {[%clk 0:02:55]} 4. c4 {[%clk 0:02:59]}  c6 {[%clk 0:02:55]} 5. Nc3 {[%clk 0:02:59]}  e5 {[%clk 0:02:56]} 6. Nge2 {[%clk 0:02:59]}  Be7 {[%clk 0:02:57]} 7. Be3 {[%clk 0:02:59]}  O-O {[%clk 0:02:57]} 8. Qd2 {[%clk 0:02:59]}  d5 {[%clk 0:02:58]} 9. exd5 {[%clk 0:02:37]}  cxd5 {[%clk 0:02:59]} 10. cxd5 {[%clk 0:02:11]}  exd4 {[%clk 0:02:58]} 11. Qxd4 {[%clk 0:01:32]}  Bc5 {[%clk 0:02:56]} 12. Qd2 {[%clk 0:01:31]}  Bxe3 {[%clk 0:02:53]} 13. Qxe3 {[%clk 0:01:32]}  Re8 {[%clk 0:02:52]} 14. Qd4 {[%clk 0:01:30]}  Qa5 {[%clk 0:02:25]} 15. O-O-O {[%clk 0:01:25]}  Nb6 {[%clk 0:02:21]} 16. Ng3 {[%clk 0:01:20]}  Bd7 {[%clk 0:02:13]} 17. Kb1 {[%clk 0:01:14]}  Rac8 {[%clk 0:01:59]} 18. Nge4 {[%clk 0:01:13]}  Bf5 {[%clk 0:01:47]} 19. Bb5 {[%clk 0:00:48]}  Nxe4 {[%clk 0:01:03]} 20. fxe4 {[%clk 0:00:42]}  Rxe4 {[%clk 0:01:03]} 21. Nxe4 {[%clk 0:00:30]}  Qxb5 {[%clk 0:01:01]} 22. Ka1 {[%clk 0:00:28]}  Rc4 {[%clk 0:00:39]} 23. Nd6 {[%clk 0:00:28]}  Rxd4 {[%clk 0:00:27]} 24. Nxb5 {[%clk 0:00:28]}  Rxd5 {[%clk 0:00:20]} 25. Nd6 {[%clk 0:00:25]}  Be6 {[%clk 0:00:05]} 26. Nxb7 {[%clk 0:00:25]}  h5 {[%clk 0:00:05]} 27. Nd6 {[%clk 0:00:19]}  Rg5 {[%clk 0:00:02]} 28. g3 {[%clk 0:00:19]}  h4 {[%clk 0:00:03]} 29. gxh4 {[%clk 0:00:18]}  Rg2 {[%clk 0:00:01]} 30. Ne4 {[%clk 0:00:19]} 1-0


[Site "https://www.chess.com"]